bitfinex-derivatives/quotes_SOLF0:USTF0_20240912
["timestamp","ask_amount","ask_price","bid_price","bid_amount"]
[1726165101426,17.76,135.13,135.06,3.3316]
[1726165101625,17.76,135.13,135.05,17.76]
[1726165102739,2.841,135.18,135.05,17.76]
[1726165102740,17.76,135.15,135.05,17.76]
[1726165104838,3.33,135.13,135.08,3.3311]
[1726165105640,3.3297,135.14,135.08,3.3311]
[1726165105933,17.76,135.15,135.08,3.331]
[1726165106937,3.3299,135.13,135.08,3.331]
[1726165107634,17.76,135.13,135.04,2.6256]
[1726165108020,3.3304,135.11,135.06,3.3315]
[1726165108220,17.76,135.11,135.04,2.6256]
[1726165108626,3.3308,135.1,135.05,3.3317]
[1726165108926,17.76,135.11,135.04,2.6256]
[1726165110440,17.76,135.14,135.04,1.3159]
[1726165110441,3.3315,135.07,135.04,1.3159]
[1726165110625,3.3315,135.07,135.03,3.3322]
[1726165110824,17.76,135.1,135.03,3.3322]
[1726165111025,3.3316,135.07,135.03,3.3322]
[1726165112138,3.3318,135.06,135.02,4.739]
[1726165112434,3.3318,135.06,135.02,1.4065]
[1726165113840,3.3318,135.06,135.03,3.3323]
[1726165114227,3.3318,135.06,135.02,1.4065]
[1726165114631,3.3315,135.07,135.02,1.4065]
[1726165114839,3.3315,135.07,135.03,3.3323]
[1726165115528,3.3317,135.06,135.03,3.3323]
[1726165117337,3.3314,135.08,135.04,3.332]
[1726165117640,17.76,135.14,135.02,1.4065]
[1726165117641,17.76,135.15,135.05,17.76]
[1726165117843,17.76,135.15,135.06,2.7383]
[1726165118139,3.3306,135.11,135.08,3.331]
[1726165118529,17.76,135.16,135.07,17.76]
[1726165119134,3.3303,135.12,135.09,3.3308]
[1726165119545,3.3303,135.12,135.08,3.331]
[1726165120543,3.3307,135.1,135.06,2.7383]
[1726165121235,3.3303,135.12,135.06,2.7383]
[1726165121832,3.3303,135.12,135.08,3.3309]
[1726165124650,3.3305,135.11,135.08,3.3309]
[1726165124853,17.76,135.15,135.07,3.3313]
[1726165125347,3.3306,135.11,135.07,3.3313]
[1726165125540,17.76,135.15,135.06,2.7383]
[1726165125735,3.3304,135.11,135.06,2.7383]
[1726165125947,17.76,135.15,135.06,2.7383]
[1726165126147,3.331,135.09,135.03,17.76]
[1726165126844,3.331,135.09,135.06,3.3314]
[1726165127149,3.331,135.09,135.07,3.3314]
[1726165128734,3.3307,135.1,135.07,3.3314]
[1726165129045,17.76,135.13,135.08,3.331]
[1726165130251,3.3306,135.11,135.08,3.331]
[1726165130445,17.76,135.15,135.05,17.76]
[1726165130651,17.76,135.15,135.07,17.76]
[1726165130951,3.3301,135.13,135.08,1.3488]
[1726165131753,3.3301,135.13,135.1,3.3306]
[1726165132352,3.3301,135.13,135.09,3.3307]
[1726165132548,17.76,135.15,135.09,3.3307]
[1726165132549,3.3302,135.12,135.09,3.3307]
[1726165132750,3.3302,135.12,135.08,1.3488]
[1726165133550,3.3304,135.11,135.08,4.6799]
[1726165133750,17.76,135.13,135.08,1.3488]
[1726165133953,17.76,135.13,135.06,3.3316]
[1726165134347,17.76,135.13,135.05,17.76]
[1726165134548,3.3308,135.1,135.07,3.3314]
[1726165134752,17.76,135.13,135.05,17.76]
[1726165135354,17.76,135.13,135.06,3.3316]
[1726165136442,3.3308,135.1,135.06,3.3316]
[1726165137444,3.3309,135.09,135.06,3.3316]
[1726165139555,3.3309,135.09,135.07,3.3314]
[1726165139854,17.76,135.13,135.07,3.3314]
[1726165140359,17.76,135.13,135.05,17.76]
[1726165140568,3.3306,135.11,135.05,17.76]
[1726165141061,3.3306,135.11,135.08,3.331]
[1726165142466,3.3308,135.1,135.07,3.3312]
[1726165143058,3.3309,135.09,135.07,3.3312]
[1726165144558,14.6908,135.1,135.07,3.3312]
[1726165145353,11.36,135.11,135.07,11.36]
[1726165145548,11.36,135.12,135.07,11.36]
[1726165145955,11.36,135.11,135.06,11.36]
[1726165146151,11.36,135.1,135.05,11.36]
[1726165146556,14.6909,135.1,135.06,3.3315]
[1726165147071,11.36,135.1,135.06,3.3315]
[1726165147566,3.331,135.09,135.06,3.3315]
[1726165148362,3.3313,135.08,135.05,3.3318]
[1726165150064,3.3313,135.08,135.03,12.7803]
[1726165150269,3.3313,135.08,135.06,3.3316]
[1726165150465,2.6592,135.11,135.07,11.36]
[1726165150659,14.0192,135.11,135.07,11.36]
[1726165150860,14.0192,135.11,135.08,3.331]
[1726165151060,17.3498,135.11,135.08,3.331]
[1726165151462,14.6906,135.11,135.08,3.331]
[1726165153468,2.6198,135.18,135.09,11.36]
[1726165153666,11.36,135.14,135.1,11.36]
[1726165154460,11.36,135.13,135.09,11.36]
[1726165154970,14.69,135.13,135.1,3.3305]
[1726165155173,11.36,135.13,135.1,3.3305]
[1726165157461,11.36,135.13,135.09,14.6908]
[1726165157662,11.36,135.12,135.08,11.36]
[1726165157872,11.36,135.12,135.06,11.36]
[1726165158072,11.36,135.1,135.08,3.331]
[1726165158261,11.36,135.1,135.05,11.36]
[1726165158462,2.6198,135.18,135.06,12.72237084]
[1726165158463,11.36,135.09,135.06,12.72237084]
[1726165158676,2.6198,135.18,135.04,3.332]
[1726165158677,11.36,135.07,135.04,3.332]
[1726165158868,11.36,135.07,135.05,6.19857052]
[1726165159070,11.36,135.07,135.05,9.53047052]
[1726165159269,11.36,135.07,135.03,179.96850777]
[1726165159483,11.36,135.07,135.04,6.19899432]
[1726165159775,11.36,135.07,135.03,179.96850777]
[1726165159971,11.36,135.07,135.04,6.20006094]
[1726165160175,2.7553,135.11,135.03,179.96850777]
[1726165160176,17.77,135.09,135.03,168.60850777]
[1726165160472,17.77,135.09,135.05,3.3318]
[1726165161773,17.77,135.09,135.03,168.60850777]
[1726165161969,20.5253,135.11,135.04,12.72795879]
[1726165162171,20.5253,135.11,135.05,6.19871261]
[1726165162377,20.5253,135.11,135.06,3.3316]
[1726165162766,20.5253,135.11,135.07,3.3312]
[1726165168379,20.5253,135.11,135.06,3.3316]
[1726165168573,20.5253,135.11,135.07,6.19834858]
[1726165168775,20.5253,135.11,135.06,3.3316]
[1726165168976,20.5253,135.11,135.07,6.19829727]
[1726165169175,20.5253,135.11,135.06,3.3316]
[1726165169383,20.5253,135.11,135.07,6.19829727]
[1726165169586,20.5253,135.11,135.06,3.3316]
[1726165169769,20.5253,135.11,135.07,6.19851583]
[1726165169974,20.5253,135.11,135.07,3.3313]
[1726165170871,2.7553,135.11,135.07,3.3313]
[1726165172787,2.7553,135.11,135.06,3.3316]
[1726165172788,20.5253,135.11,135.06,3.3316]
[1726165173984,20.5253,135.11,135.07,6.19810538]
[1726165174185,20.5253,135.11,135.06,3.3316]
[1726165174387,20.5253,135.11,135.03,19.1903]
[1726165174580,20.5253,135.11,135.04,17.74679674]
[1726165174888,20.5253,135.11,135.05,17.74679674]
[1726165175071,20.5253,135.11,135.07,3.3312]
[1726165175276,20.5253,135.11,135.03,19.1903]
[1726165175483,20.5253,135.11,135.04,12.72541914]
[1726165175772,20.5253,135.11,135.05,6.52746311]
[1726165175972,20.5253,135.11,135.06,12.72434479]
[1726165176281,20.5253,135.11,135.07,16.05574479]
[1726165176585,20.5253,135.11,135.08,6.19688168]
[1726165176884,17.77,135.09,135.05,3.3319]
[1726165177185,17.77,135.09,135.06,6.19812194]
[1726165177387,17.77,135.09,135.05,3.3319]
[1726165177582,17.77,135.09,135.06,6.19865265]
[1726165177786,17.77,135.09,135.05,3.3319]
[1726165177986,17.77,135.09,135.06,6.19865894]
[1726165178287,17.77,135.09,135.04,5.02289334]
[1726165178480,17.77,135.09,135.05,12.72838112]
[1726165178679,17.77,135.09,135.06,6.19875781]
[1726165178883,17.77,135.09,135.04,5.02289334]
[1726165179085,17.77,135.09,135.05,12.72933926]
[1726165179389,17.77,135.09,135.04,5.02289334]
[1726165179591,17.77,135.09,135.06,6.19944536]
[1726165179787,17.77,135.09,135.05,9.86217046]
[1726165179985,17.77,135.09,135.06,6.19951051]
[1726165180290,11.37,135.08,135.05,3.3319]
[1726165180498,11.37,135.08,135.06,6.19958971]
[1726165180789,11.37,135.08,135.05,3.3319]
[1726165180988,11.37,135.08,135.06,6.19964101]
[1726165181175,11.37,135.08,135.05,3.3319]
[1726165181380,2.7553,135.11,135.06,6.1998016]
[1726165181590,11.37,135.1,135.06,11.37]
[1726165181789,11.37,135.1,135.07,6.19812753]
[1726165181980,11.37,135.1,135.06,11.37]
[1726165182177,11.37,135.1,135.07,6.19794722]
[1726165182475,11.37,135.1,135.07,3.3312]
[1726165184492,11.37,135.09,135.06,3.3315]
[1726165184795,11.37,135.08,135.07,6.19952647]
[1726165185292,11.37,135.08,135.05,3.3318]
[1726165185483,11.37,135.07,135.06,6.20124349]
[1726165187490,2.7553,135.11,135.06,6.20124349]
[1726165187692,11.37,135.07,135.05,3.3319]
[1726165187995,11.37,135.07,135.06,6.20288925]
[1726165188986,11.37,135.07,135.03,3.3322]
[1726165189197,11.37,135.05,135.04,12.74063821]
[1726165189502,11.37,135.05,135.02,3.3326]
[1726165189698,24.9453,135.11,135.03,6.20648501]
[1726165189900,11.37,135.05,135.04,6.20648501]
[1726165190101,11.37,135.05,135.02,3.3326]
[1726165190495,11.37,135.05,135.03,6.2063218]
[1726165190699,11.37,135.04,135.02,3.3326]
[1726165191195,11.37,135.04,135.03,6.20708962]
[1726165191394,11.37,135.04,135.02,3.3326]
[1726165193489,24.9453,135.11,135.03,3.3324]
[1726165193692,11.37,135.05,135.03,3.3324]
[1726165194099,11.37,135.05,135.04,3.3321]
[1726165194403,11.37,135.05,135.0,11.37]
[1726165194603,11.37,135.04,135.02,3.3326]
[1726165194802,11.37,135.04,135.0,11.37]
[1726165195003,11.37,135.04,135.01,12.66542419]
[1726165195202,11.37,135.04,135.02,12.66542419]
[1726165195404,11.37,135.04,135.03,3.3324]
[1726165195899,11.37,135.05,135.01,11.37]
[1726165196106,11.37,135.06,135.04,3.3319]
[1726165196896,2.7553,135.11,135.05,3.3319]
[1726165197095,11.37,135.06,135.05,3.3319]
[1726165198005,11.37,135.06,135.04,3.3321]
[1726165199209,11.37,135.06,135.05,3.3319]
[1726165202593,2.7553,135.11,135.06,3.3316]
[1726165202805,11.37,135.08,135.03,11.37]
[1726165203005,11.37,135.08,135.04,12.66170777]
[1726165203210,2.7553,135.11,135.03,11.37]
[1726165203403,11.37,135.09,135.04,13.9582485]
[1726165203709,11.37,135.1,135.08,3.331]
[1726165204707,3.69093586,135.12,135.09,3.3309]
[1726165204900,11.37,135.1,135.05,11.37]
[1726165205212,11.37,135.1,135.06,6.12498583]
[1726165205403,11.37,135.1,135.08,3.331]
[1726165206009,11.37,135.1,135.09,3.3309]
[1726165213306,11.37,135.1,135.07,11.37]
[1726165213512,11.37,135.1,135.08,3.3311]
[1726165214510,11.37,135.11,135.05,12.7383]
[1726165214720,11.37,135.11,135.06,12.65489763]
[1726165214913,11.37,135.11,135.07,12.65489763]
[1726165215114,11.37,135.11,135.09,3.3309]
[1726165216322,15.1634007,135.12,135.1,3.3306]
[1726165216613,11.37,135.12,135.1,3.3306]
[1726165218814,11.37,135.11,135.09,3.3308]
[1726165220209,11.37,135.1,135.08,3.331]
[1726165220717,11.37,135.1,135.05,12.7383]
[1726165221521,3.3302,135.12,135.09,3.3309]
[1726165221522,11.37,135.11,135.09,3.3309]
[1726165227337,11.37,135.11,135.1,3.3306]
[1726165228238,11.37,135.11,135.09,3.3308]
[1726165228431,11.37,135.11,135.04,1.2963]
[1726165228432,11.37,135.1,135.04,1.2963]
[1726165228733,11.37,135.08,135.05,17.68559911]
[1726165228941,11.37,135.08,135.06,3.3314]
[1726165229128,11.37,135.08,135.06,9.865374]
[1726165229328,11.37,135.08,135.04,1.2963]
[1726165229531,11.37,135.08,135.07,3.3314]
[1726165231143,11.37,135.09,135.07,3.3314]
[1726165232028,11.37,135.09,135.08,3.3311]
[1726165232232,11.37,135.1,135.08,3.3311]
[1726165232837,3.3312,135.08,135.05,3.3317]
[1726165233035,11.37,135.06,135.05,3.3317]
[1726165233237,11.37,135.06,135.05,9.4575998]
[1726165233539,11.37,135.06,135.05,3.3317]
[1726165233744,11.37,135.08,135.05,3.3317]
[1726165233942,11.37,135.08,135.06,3.3316]
[1726165235241,11.37,135.09,135.05,11.37]
[1726165235848,11.37,135.09,135.08,3.3311]
[1726165236139,11.37,135.11,135.06,11.37]
[1726165236334,2.6496,135.12,135.07,17.49378817]
[1726165236335,11.37,135.12,135.07,17.49378817]
[1726165236640,11.37,135.12,135.1,3.3305]
[1726165238335,6.065,135.16,135.11,11.37]
[1726165238542,6.065,135.16,135.12,11.37]
[1726165238543,11.37,135.16,135.12,11.37]
[1726165238933,11.37,135.16,135.13,3.3299]
[1726165240242,11.37,135.15,135.12,3.3301]
[1726165240545,11.37,135.14,135.12,3.3301]
[1726165241935,11.37,135.13,135.11,3.3303]
[1726165242131,11.37,135.12,135.09,1.4178]
[1726165242330,3.3298,135.14,135.11,3.3304]
[1726165242638,14.6998,135.14,135.11,3.3304]
[1726165243045,11.37,135.14,135.11,3.3304]
[1726165243943,14.6995,135.15,135.12,3.3301]
[1726165244244,11.37,135.15,135.11,11.37]
[1726165244842,11.37,135.15,135.12,3.3301]
[1726165245737,14.6995,135.15,135.12,3.3301]
[1726165246645,11.37,135.15,135.12,3.3301]
[1726165247441,14.6994,135.15,135.11,14.7004]
[1726165248242,11.37,135.13,135.11,3.3304]
[1726165249552,11.37,135.14,135.11,3.3304]
[1726165250047,14.6994,135.15,135.11,14.7004]
[1726165250248,14.6993,135.16,135.11,11.37]
[1726165250444,14.6993,135.16,135.12,11.37]
[1726165251846,14.6993,135.16,135.13,3.3299]
[1726165252049,11.37,135.15,135.11,11.37]
[1726165252443,11.37,135.14,135.11,3.3303]
[1726165256354,11.37,135.13,135.1,3.3305]
[1726165257150,3.3302,135.12,135.09,1.4178]
[1726165257347,11.37,135.11,135.09,1.4178]
[1726165257745,11.37,135.11,135.09,4.7486]
[1726165258545,14.7002,135.12,135.09,4.7486]
[1726165258953,11.37,135.1,135.06,3.3315]
[1726165259250,11.37,135.09,135.06,3.3315]
[1726165260145,3.3308,135.1,135.06,3.3315]
[1726165260742,3.331,135.09,135.05,1.3586]
[1726165261842,3.331,135.09,135.06,3.3315]
[1726165262039,3.3312,135.08,135.05,1.3586]
[1726165262243,17.77,135.11,135.05,1.3586]
[1726165262443,17.77,135.11,135.05,4.6904]
[1726165263252,3.3311,135.09,135.05,4.6904]
[1726165263850,3.3311,135.08,135.05,4.6904]
[1726165264847,3.3314,135.07,135.05,1.3586]
[1726165265257,3.3312,135.08,135.05,1.3586]
[1726165266248,17.77,135.11,135.05,1.3586]
[1726165266444,17.77,135.09,135.05,1.3586]
[1726165266658,17.77,135.09,135.01,5.10523197]
[1726165266956,17.77,135.09,135.02,17.69265686]
[1726165267147,3.3318,135.06,135.03,12.66321603]
[1726165267348,3.3318,135.06,135.04,12.66321603]
[1726165267553,17.77,135.08,135.02,3.3326]
[1726165267860,3.332,135.05,135.03,12.6636957]
[1726165268053,3.332,135.05,135.04,6.12687394]
[1726165268763,3.3322,135.04,135.01,2.806]
[1726165268949,3.3322,135.04,135.02,17.69529134]
[1726165269150,3.3322,135.04,135.01,2.806]
[1726165269454,3.3322,135.04,135.03,6.53743474]
[1726165269656,3.3322,135.04,135.02,6.53743474]
[1726165269961,3.3322,135.04,135.03,6.1326582]
[1726165270354,3.3322,135.04,135.01,1.4316]
[1726165270555,3.3322,135.04,135.02,12.67788264]
[1726165270757,3.3322,135.04,135.01,1.4316]
[1726165270962,3.3322,135.04,135.02,12.67911207]
[1726165271263,3.3322,135.04,135.01,1.4316]
[1726165271462,3.3324,135.03,135.02,12.68077504]
[1726165271664,3.3324,135.03,135.02,6.54552188]
[1726165271861,17.77,135.06,135.01,1.4316]
[1726165272050,3.3322,135.04,135.01,1.4316]
[1726165272255,17.77,135.07,135.02,6.13624838]
[1726165272451,3.332,135.05,135.02,3.3326]
[1726165274164,17.77,135.11,135.02,17.77]
[1726165274465,21.43054663,135.11,135.03,6.1345092]
[1726165274666,21.43054663,135.11,135.02,19.0792]
[1726165274869,21.43054663,135.11,135.03,12.67948424]
[1726165275160,21.43054663,135.11,135.04,3.332]
[1726165275859,3.3313,135.08,135.04,3.332]
[1726165277474,17.77,135.09,135.03,3.3322]
[1726165277475,3.3315,135.07,135.03,3.3322]
[1726165277653,17.77,135.08,135.02,1.3092]
[1726165278057,3.3319,135.05,135.02,4.6417]
[1726165279064,3.3319,135.05,135.02,3.3325]
[1726165280175,3.3322,135.04,135.01,4.7643]
[1726165281062,3.3324,135.03,135.01,1.4316]
[1726165284268,3.3322,135.04,135.01,4.7645]
[1726165284575,11.38,135.06,135.01,12.8116]
[1726165285363,3.332,135.05,135.02,3.3325]
[1726165286562,3.332,135.05,135.01,12.8116]
[1726165286563,3.3317,135.06,135.03,3.3322]
[1726165287168,3.3319,135.05,135.02,3.3325]
[1726165287365,11.38,135.07,135.01,12.8116]
[1726165288169,3.3319,135.06,135.03,3.3323]
[1726165288371,11.38,135.07,135.03,3.3323]
[1726165288577,11.38,135.07,135.01,12.8116]
[1726165289872,3.3318,135.06,135.03,3.3323]
[1726165290878,3.3319,135.05,135.03,3.3323]
[1726165293877,3.3317,135.06,135.03,3.3323]
[1726165294077,3.3317,135.06,135.04,3.3321]
[1726165294578,3.3317,135.06,135.01,12.8116]
[1726165294579,11.38,135.1,135.05,11.38]
[1726165294880,11.38,135.11,135.05,11.38]
[1726165295074,11.38,135.11,135.07,11.38]
[1726165295582,11.38,135.11,135.06,1.4344]
[1726165295583,11.38,135.1,135.06,1.4344]
[1726165296278,3.3311,135.09,135.06,4.766]
[1726165297278,11.38,135.1,135.07,3.3313]
[1726165297279,14.7107,135.1,135.07,3.3313]
[1726165298071,14.7105,135.11,135.07,3.3313]
[1726165298574,14.7105,135.11,135.08,3.3311]
[1726165300485,3.3307,135.1,135.07,14.7113]
[1726165301086,14.7105,135.11,135.08,3.3311]
[1726165301286,14.7105,135.11,135.07,11.38]
[1726165301685,14.7105,135.11,135.08,3.331]
[1726165302384,115.59900374,135.18,135.09,11.38]
[1726165302581,11.38,135.14,135.09,11.38]
[1726165302984,14.7098,135.14,135.1,3.3304]
[1726165303187,11.38,135.14,135.1,3.3304]
[1726165303588,3.33,135.13,135.1,3.3304]
[1726165303887,2.6939,135.18,135.12,11.38]
[1726165304197,14.7094,135.16,135.12,11.38]
[1726165304388,14.7094,135.16,135.13,3.3297]
[1726165305074,3.3294,135.15,135.12,14.7101]
[1726165305793,14.7091,135.17,135.14,3.3297]
[1726165307689,11.38,135.19,135.14,11.38]
[1726165307880,11.38,135.2,135.15,11.38]
[1726165308383,1.3385,135.23,135.17,11.38]
[1726165308686,11.38,135.24,135.19,11.38]
[1726165309190,14.7074,135.24,135.2,3.328]
[1726165309397,14.7074,135.24,135.19,11.38]
[1726165309686,11.38,135.24,135.19,11.38]
[1726165310078,3.3276,135.23,135.19,14.7084]
[1726165310278,11.38,135.23,135.19,11.38]
[1726165310989,11.38,135.23,135.18,11.38]
[1726165311391,3.3278,135.22,135.19,11.38]
[1726165313390,3.328,135.21,135.19,11.38]
[1726165313986,3.3278,135.22,135.19,11.38]
[1726165314484,11.38,135.23,135.19,11.38]
[1726165314691,3.3276,135.23,135.2,11.38]
[1726165315495,3.3275,135.23,135.2,11.38]
[1726165316793,11.38,135.24,135.2,11.38]
[1726165316794,3.3277,135.22,135.2,11.38]
[1726165319198,3.3275,135.23,135.2,11.38]
[1726165319700,3.3271,135.25,135.21,14.7078]
[1726165319889,3.3271,135.25,135.22,11.38]
[1726165320401,3.3268,135.26,135.22,14.7076]
[1726165320597,224.0,135.39,135.25,11.38]
[1726165320791,9.9684,135.43,135.25,11.38]
[1726165320792,1.4292,135.33,135.25,11.38]
[1726165320987,11.38,135.3,135.25,11.38]
[1726165321884,11.38,135.3,135.25,14.7069]
[1726165322087,11.38,135.3,135.26,11.38]
[1726165322289,11.38,135.29,135.19,166.99840897]
[1726165322488,11.38,135.29,135.24,11.38]
[1726165323398,3.3266,135.27,135.24,11.38]
[1726165324391,22.23,135.39,135.26,11.38]
[1726165324586,11.38,135.33,135.29,11.38]
[1726165324985,1.2995,135.38,135.31,11.38]
[1726165325192,11.38,135.36,135.31,11.38]
[1726165325399,11.38,135.34,135.31,11.38]
[1726165325698,3.325,135.33,135.31,11.38]
[1726165326101,11.38,135.34,135.31,11.38]
[1726165326296,11.38,135.34,135.29,11.38]
[1726165326606,11.38,135.33,135.29,11.38]
[1726165327101,1.2995,135.38,135.31,11.38]
[1726165327415,11.38,135.37,135.32,11.38]
[1726165327904,3.3249,135.34,135.32,11.38]
[1726165328204,3.3249,135.34,135.3,3.3256]
[1726165328404,3.3249,135.34,135.32,11.38]
[1726165329106,3.3251,135.33,135.31,11.38]
[1726165329892,3.3248,135.34,135.31,11.38]
[1726165331503,3.325,135.33,135.31,11.38]
[1726165331802,1.2995,135.38,135.29,11.38]
[1726165332105,11.38,135.34,135.28,11.38]
[1726165332303,11.38,135.34,135.29,11.38]
[1726165332803,3.3254,135.32,135.29,11.38]
[1726165333313,3.3251,135.33,135.29,14.7059]
[1726165333604,3.3253,135.32,135.29,11.38]
[1726165334213,3.3253,135.32,135.29,14.706]
[1726165334706,1.2995,135.38,135.3,11.38]
[1726165334902,11.38,135.36,135.31,11.38]
[1726165335500,3.325,135.34,135.31,11.38]
[1726165335820,11.38,135.36,135.31,11.38]
[1726165336910,1.2995,135.38,135.29,3.3259]
[1726165336911,11.38,135.35,135.29,3.3259]
[1726165337100,11.38,135.35,135.25,6.36579594]
[1726165337101,11.38,135.35,135.3,11.38]
[1726165337510,11.38,135.35,135.3,14.7057]
[1726165337909,3.3251,135.33,135.29,14.7059]
[1726165338109,3.3251,135.33,135.3,11.38]
[1726165338410,11.38,135.35,135.3,11.38]
[1726165338602,3.3249,135.34,135.3,14.7056]
[1726165339914,3.325,135.33,135.3,14.7056]
[1726165341214,2.7248,135.38,135.32,11.38]
[1726165341415,14.1048,135.38,135.33,11.38]
[1726165341609,3.3245,135.35,135.33,11.38]
[1726165342205,3.3245,135.35,135.32,14.7051]
[1726165342402,3.3245,135.35,135.32,11.38]
[1726165342906,3.3248,135.34,135.31,11.38]
[1726165345716,3.3246,135.35,135.32,11.38]
[1726165348206,22.23,135.44,135.34,11.38]
[1726165348519,11.38,135.4,135.36,11.38]
[1726165349206,24.9363,135.44,135.32,1.3201]
[1726165349408,14.7045,135.36,135.32,12.7001]
[1726165349624,11.38,135.36,135.32,12.7001]
[1726165350317,14.7043,135.36,135.33,11.38]
[1726165351325,3.3242,135.37,135.34,11.38]
[1726165351711,11.38,135.37,135.32,1.3201]
[1726165351907,2.7063,135.44,135.32,1.3201]
[1726165351908,3.74352804,135.38,135.32,1.3201]
[1726165352118,11.38,135.35,135.32,1.3201]
[1726165352521,3.3248,135.34,135.32,1.3201]
[1726165354623,11.38,135.35,135.32,1.3201]
[1726165354821,11.38,135.36,135.32,12.7001]
[1726165355321,11.38,135.35,135.32,1.3201]
[1726165355620,11.38,135.35,135.32,12.7001]
[1726165355923,11.38,135.37,135.32,12.7001]
[1726165357924,3.3245,135.35,135.32,12.7001]
[1726165358127,3.71572178,135.38,135.27,166.88802284]
[1726165358310,2.7063,135.44,135.28,1.3975]
[1726165358311,3.3249,135.34,135.28,1.3975]
[1726165358515,3.3249,135.34,135.31,11.38]
[1726165359124,11.38,135.34,135.29,11.38]
[1726165360118,3.3253,135.32,135.29,11.38]
[1726165360321,11.38,135.34,135.29,11.38]
[1726165360722,3.3251,135.33,135.29,14.706]
[1726165361317,14.7048,135.34,135.29,14.706]
[1726165362313,3.325,135.33,135.29,14.706]
[1726165363020,3.325,135.33,135.29,11.38]
[1726165364028,3.3253,135.32,135.29,11.38]
[1726165364216,3.78805994,135.37,135.28,4.7235]
[1726165364217,11.38,135.3,135.28,1.3975]
[1726165364625,3.326,135.29,135.28,1.3975]
[1726165365128,3.3256,135.31,135.28,1.3975]
[1726165365321,11.38,135.32,135.28,1.3975]
[1726165365723,3.3259,135.3,135.28,1.3975]
[1726165368338,3.3254,135.32,135.29,11.38]
[1726165369135,3.3254,135.32,135.28,16.1036]
[1726165369726,3.3251,135.33,135.3,11.38]
[1726165370035,11.38,135.36,135.31,11.38]
[1726165370625,3.3246,135.35,135.31,14.7055]
[1726165370833,3.3246,135.35,135.32,11.38]
[1726165371932,3.3246,135.35,135.32,14.7052]
[1726165372933,3.3246,135.35,135.33,11.38]
[1726165373833,3.3246,135.35,135.33,12.8007]
[1726165376637,11.38,135.37,135.33,1.4207]
[1726165376938,11.38,135.36,135.33,1.4207]
[1726165377123,2.7873,135.4,135.33,1.4207]
[1726165377124,2.7873,135.4,135.34,11.38]
[1726165377329,11.38,135.38,135.34,11.38]
[1726165377841,3.3244,135.36,135.33,1.4207]
[1726165378440,3.3247,135.35,135.33,1.4207]
[1726165380934,3.3239,135.38,135.34,11.38]
[1726165381133,11.38,135.4,135.36,11.38]
[1726165381641,3.3239,135.38,135.36,11.38]
[1726165382235,11.38,135.4,135.33,4.0642]
[1726165382236,3.324,135.37,135.33,4.0642]
[1726165382538,3.324,135.37,135.34,11.38]